[Event "Polofinale MCR juniorek 2023"]
[Site "Czech Republic"]
[Date "2023.11.16"]
[Round "7.9"]
[White "Macova, Marketa"]
[Black "Nespora, Tatana"]
[Result "0-1"]
[TimeControl "90 min per 40 moves + 15 min + 30 sec / move from move 1"]
[WhiteFideId "23715588"]
[BlackFideId "392286"]
[WhiteElo "1416"]
[BlackElo "1690"]

1. e4 {[%clk 01:30:57]} {[%emt 00:00:01]} c5 {[%clk 01:30:42]} {[%emt
00:00:18]} 2. Nf3 {[%clk 01:31:14]} {[%emt 00:00:13]} Nc6 {[%clk 01:30:59]}
{[%emt 00:00:13]} 3. d4 {[%clk 01:31:30]} {[%emt 00:00:14]} cxd4 {[%clk
01:31:14]} {[%emt 00:00:15]} 4. Nxd4 {[%clk 01:31:49]} {[%emt 00:00:11]} Nf6
{[%clk 01:31:28]} {[%emt 00:00:15]} 5. Nc3 {[%clk 01:32:07]} {[%emt 00:00:13]}
e5 {[%clk 01:31:45]} {[%emt 00:00:12]} 6. Ndb5 {[%clk 01:31:51]} {[%emt
00:00:46]} d6 {[%clk 01:31:56]} {[%emt 00:00:20]} 7. Nd5 {[%clk 01:31:49]}
{[%emt 00:00:31]} Nxd5 {[%clk 01:31:20]} {[%emt 00:01:06]} 8. exd5 {[%clk
01:32:09]} {[%emt 00:00:10]} Nb8 {[%clk 01:31:22]} {[%emt 00:00:29]} 9. c4
{[%clk 01:31:05]} {[%emt 00:01:34]} Be7 {[%clk 01:26:08]} {[%emt 00:05:43]} 10.
Be2 {[%clk 01:29:58]} {[%emt 00:01:37]} O-O {[%clk 01:25:38]} {[%emt 00:01:00]}
11. O-O {[%clk 01:30:06]} {[%emt 00:00:21]} Nd7 {[%clk 01:22:06]} {[%emt
00:04:02]} 12. Be3 {[%clk 01:27:35]} {[%emt 00:03:01]} a6 {[%clk 01:19:57]}
{[%emt 00:02:40]} 13. Nc3 {[%clk 01:26:17]} {[%emt 00:01:48]} f5 {[%clk
01:18:16]} {[%emt 00:02:11]} 14. f4 {[%clk 01:25:47]} {[%emt 00:01:00]} Bf6
{[%clk 01:06:09]} {[%emt 00:12:38]} 15. Rc1 {[%clk 01:22:20]} {[%emt 00:03:57]}
g5 {[%clk 00:59:36]} {[%emt 00:07:03]} 16. fxg5 {[%clk 01:15:55]} {[%emt
00:06:55]} Bxg5 {[%clk 00:58:35]} {[%emt 00:01:30]} 17. Bxg5 {[%clk 01:12:13]}
{[%emt 00:04:13]} Qxg5 {[%clk 00:58:33]} {[%emt 00:00:33]} 18. Rf3 {[%clk
01:09:51]} {[%emt 00:02:51]} Kh8 {[%clk 00:48:57]} {[%emt 00:10:06]} 19. Rg3
{[%clk 01:05:34]} {[%emt 00:04:47]} Qf6 {[%clk 00:45:21]} {[%emt 00:04:05]} 20.
b4 {[%clk 01:00:24]} {[%emt 00:05:41]} a5 {[%clk 00:42:29]} {[%emt 00:03:23]}
21. a3 {[%clk 00:59:30]} {[%emt 00:01:24]} axb4 {[%clk 00:40:42]} {[%emt
00:02:16]} 22. axb4 {[%clk 00:59:43]} {[%emt 00:00:17]} b6 {[%clk 00:39:47]}
{[%emt 00:01:26]} 23. Qd2 {[%clk 00:56:41]} {[%emt 00:03:32]} f4 {[%clk
00:31:21]} {[%emt 00:08:56]} 24. Rf1 {[%clk 00:49:47]} {[%emt 00:07:24]} Qe7
{[%clk 00:27:37]} {[%emt 00:04:15]} 25. Rgf3 {[%clk 00:45:05]} {[%emt
00:05:12]} Nf6 {[%clk 00:25:45]} {[%emt 00:02:22]} 26. Qc2 {[%clk 00:39:33]}
{[%emt 00:06:01]} Ng4 {[%clk 00:23:51]} {[%emt 00:02:24]} 27. Nd1 {[%clk
00:38:05]} {[%emt 00:01:59]} Bf5 {[%clk 00:21:29]} {[%emt 00:02:52]} 28. Qc3
{[%clk 00:33:44]} {[%emt 00:04:51]} Qg7 {[%clk 00:16:35]} {[%emt 00:05:23]} 29.
g3 {[%clk 00:30:00]} {[%emt 00:04:14]} Ra2 {[%clk 00:15:10]} {[%emt 00:01:55]}
30. Qe1 {[%clk 00:24:59]} {[%emt 00:05:31]} Be4 {[%clk 00:13:04]} {[%emt
00:02:36]} 31. Rc3 {[%clk 00:19:41]} {[%emt 00:05:49]} Nxh2 {[%clk 00:12:12]}
{[%emt 00:01:21]} 32. Rf2 {[%clk 00:16:00]} {[%emt 00:04:11]} f3 {[%clk
00:07:54]} {[%emt 00:04:49]} 33. Rxh2 {[%clk 00:11:53]} {[%emt 00:04:36]} fxe2
{[%clk 00:08:18]} {[%emt 00:00:07]} 34. Ne3 {[%clk 00:10:42]} {[%emt 00:01:41]}
Ra1 {[%clk 00:07:16]} {[%emt 00:01:32]} 35. Qxa1 {[%clk 00:10:03]} {[%emt
00:01:08]} Qxg3+ {[%clk 00:07:40]} {[%emt 00:00:06]} 36. Rg2 {[%clk 00:07:18]}
{[%emt 00:03:14]} e1=Q+ {[%clk 00:07:42]} {[%emt 00:00:29]} 37. Qxe1 {[%clk
00:07:23]} {[%emt 00:00:24]} Qxe1+ {[%clk 00:08:03]} {[%emt 00:00:09]} 38. Kh2
{[%clk 00:07:23]} {[%emt 00:00:30]} Qxc3 {[%clk 00:08:20]} {[%emt 00:00:13]}
0-1

[Event "Polofinale MCR juniorek 2023"]
[Site "Czech Republic"]
[Date "2023.11.16"]
[Round "7.11"]
[White "Taborska, Aneta"]
[Black "Stavova, Marketa"]
[Result "0-1"]
[TimeControl "90 min per 40 moves + 15 min + 30 sec / move from move 1"]
[WhiteFideId "23733039"]
[BlackFideId "23714824"]
[WhiteElo "1165"]
[BlackElo "1433"]

1. e4 {[%emt 00:02:19]} e5 {[%clk 01:30:37]} 2. Nf3 {[%clk 01:29:25]} {[%emt
00:00:07]} Nc6 {[%emt 00:00:26]} 3. Bb5 {[%clk 01:29:21]} {[%emt 00:00:33]} a6
{[%clk 01:30:26]} {[%emt 00:00:46]} 4. Ba4 {[%clk 01:29:35]} {[%emt 00:00:16]}
Nf6 {[%clk 01:29:45]} {[%emt 00:01:11]} 5. O-O {[%clk 01:28:15]} {[%emt
00:01:49]} b5 {[%clk 01:29:31]} {[%emt 00:00:45]} 6. Bb3 {[%emt 00:00:29]} Be7
{[%clk 01:29:14]} {[%emt 00:00:43]} 7. Re1 {[%clk 01:28:29]} {[%emt 00:00:21]}
O-O {[%clk 01:28:49]} {[%emt 00:00:55]} 8. c3 {[%clk 01:28:45]} {[%emt
00:00:14]} d6 {[%emt 00:00:51]} 9. h3 {[%clk 01:29:03]} {[%emt 00:00:11]} Bb7
{[%clk 01:25:38]} {[%emt 00:03:22]} 10. d4 {[%clk 01:28:33]} {[%emt 00:00:59]}
exd4 {[%emt 00:01:21]} 11. cxd4 {[%clk 01:28:31]} {[%emt 00:00:31]} h6 {[%clk
01:23:54]} {[%emt 00:01:24]} 12. Nc3 {[%clk 01:26:14]} {[%emt 00:02:47]} b4
{[%clk 01:20:47]} {[%emt 00:03:37]} 13. Nd5 {[%clk 01:24:54]} {[%emt 00:01:49]}
Nxd5 {[%clk 01:20:35]} {[%emt 00:00:43]} 14. Bxd5 {[%emt 00:00:46]} Na5 {[%clk
01:19:09]} {[%emt 00:01:40]} 15. Qa4 {[%clk 01:24:47]} {[%emt 00:00:35]} c6
{[%emt 00:00:23]} 16. Bb3 {[%clk 01:24:51]} {[%emt 00:00:23]} Nxb3 {[%clk
01:18:57]} {[%emt 00:00:54]} 17. Qxb3 {[%clk 01:24:55]} {[%emt 00:00:26]} a5
{[%clk 01:18:46]} {[%emt 00:00:41]} 18. a3 {[%emt 00:00:39]} c5 {[%emt
00:01:12]} 19. Bf4 {[%clk 01:24:26]} {[%emt 00:00:53]} Qb6 {[%clk 01:15:59]}
{[%emt 00:02:31]} 20. Rad1 {[%clk 01:23:31]} {[%emt 00:01:24]} Rad8 {[%clk
01:09:15]} {[%emt 00:07:13]} 21. e5 {[%clk 01:23:15]} {[%emt 00:00:47]} Qc6
{[%clk 01:05:35]} {[%emt 00:04:10]} 22. d5 {[%clk 01:22:24]} {[%emt 00:01:21]}
Qc7 {[%clk 01:05:13]} {[%emt 00:00:52]} 23. e6 {[%clk 01:20:00]} {[%emt
00:02:54]} fxe6 {[%clk 01:05:04]} {[%emt 00:00:39]} 24. Bg3 {[%clk 01:18:32]}
{[%emt 00:01:58]} Bxd5 {[%clk 01:03:27]} {[%emt 00:02:08]} 25. Qe3 {[%clk
01:18:31]} {[%emt 00:00:29]} Rde8 {[%clk 01:01:09]} {[%emt 00:02:49]} 26. axb4
{[%clk 01:17:28]} {[%emt 00:01:34]} axb4 {[%clk 01:01:19]} {[%emt 00:00:19]} 27.
Nh4 {[%clk 01:16:22]} {[%emt 00:01:35]} Bg5 {[%clk 00:59:32]} {[%emt 00:02:18]}
28. Qd3 {[%clk 01:16:16]} {[%emt 00:00:34]} Bxh4 {[%clk 00:57:50]} {[%emt
00:02:13]} 29. Bxh4 {[%clk 01:16:23]} {[%emt 00:00:23]} Qf7 {[%clk 00:56:43]}
{[%emt 00:01:38]} 30. Re3 {[%clk 01:16:27]} {[%emt 00:00:25]} Ra8 {[%clk
00:55:41]} {[%emt 00:01:33]} 31. Rf1 {[%clk 01:14:52]} {[%emt 00:02:04]} Ra2
{[%clk 00:53:44]} {[%emt 00:02:27]} 32. Re2 {[%clk 01:14:39]} {[%emt 00:00:40]}
e5 {[%clk 00:51:23]} {[%emt 00:02:55]} 33. Qg3 {[%clk 01:14:21]} {[%emt
00:00:47]} Bc4 {[%emt 00:01:28]} 0-1

[Event "Polofinale MCR juniorek 2023"]
[Site "Czech Republic"]
[Date "2023.11.17"]
[Round "8.1"]
[White "Jakubse, Tamae Severina"]
[Black "Buchtova, Viktorie"]
[Result "1/2-1/2"]
[TimeControl "90 min per 40 moves + 15 min + 30 sec / move from move 1"]
[WhiteFideId "23745975"]
[BlackFideId "23714786"]
[WhiteElo "1679"]
[BlackElo "1801"]

1. e4 {[%clk 01:30:58]} {[%emt 00:00:02]} c5 {[%clk 01:30:55]} {[%emt
00:00:05]} 2. c3 {[%clk 01:31:23]} {[%emt 00:00:04]} d5 {[%clk 01:31:22]}
{[%emt 00:00:04]} 3. exd5 {[%clk 01:31:49]} {[%emt 00:00:04]} Qxd5 {[%clk
01:31:47]} {[%emt 00:00:04]} 4. d4 {[%clk 01:32:15]} {[%emt 00:00:05]} Nf6
{[%clk 01:32:00]} {[%emt 00:00:16]} 5. Nf3 {[%clk 01:32:37]} {[%emt 00:00:07]}
Bg4 {[%clk 01:32:18]} {[%emt 00:00:12]} 6. Nbd2 {[%clk 01:33:01]} {[%emt
00:00:06]} cxd4 {[%clk 01:26:49]} {[%emt 00:05:59]} 7. Bc4 {[%clk 01:33:23]}
{[%emt 00:00:07]} Qc5 {[%clk 01:08:27]} {[%emt 00:18:53]} 8. Qb3 {[%clk
01:20:32]} {[%emt 00:13:22]} dxc3 {[%clk 00:54:26]} {[%emt 00:14:31]} 9. Bxf7+
{[%clk 01:13:28]} {[%emt 00:07:33]} Kd8 {[%clk 00:52:41]} {[%emt 00:02:15]} 10.
bxc3 {[%clk 01:12:20]} {[%emt 00:01:39]} Nc6 {[%clk 00:48:29]} {[%emt
00:04:42]} 11. O-O {[%clk 01:06:55]} {[%emt 00:05:54]} e6 {[%clk 00:36:12]}
{[%emt 00:12:47]} 12. h3 {[%clk 00:55:42]} {[%emt 00:11:43]} Bf5 {[%clk
00:22:13]} {[%emt 00:14:31]} 13. Ng5 {[%clk 00:49:03]} {[%emt 00:07:08]} Qe7
{[%clk 00:16:51]} {[%emt 00:05:52]} 14. Nxe6+ {[%clk 00:30:01]} {[%emt
00:19:33]} Bxe6 {[%clk 00:14:42]} {[%emt 00:02:39]} 15. Bxe6 {[%clk 00:29:20]}
{[%emt 00:01:11]} Na5 {[%clk 00:14:57]} {[%emt 00:00:15]} 16. Qb5 {[%clk
00:20:05]} {[%emt 00:09:45]} Qxe6 {[%clk 00:15:03]} {[%emt 00:00:24]} 17. Qxa5+
{[%clk 00:20:27]} {[%emt 00:00:08]} b6 {[%clk 00:14:57]} {[%emt 00:00:35]} 18.
Qa4 {[%clk 00:19:25]} {[%emt 00:01:32]} Kc7 {[%clk 00:14:56]} {[%emt 00:00:31]}
19. Nf3 {[%clk 00:18:52]} {[%emt 00:01:02]} Qe4 {[%clk 00:07:29]} {[%emt
00:07:57]} 20. Qb3 {[%clk 00:16:35]} {[%emt 00:02:47]} Qd5 {[%clk 00:07:35]}
{[%emt 00:00:24]} 21. Bf4+ {[%clk 00:15:48]} {[%emt 00:01:17]} Kb7 {[%clk
00:06:08]} {[%emt 00:01:57]} 22. c4 {[%clk 00:14:54]} {[%emt 00:01:24]} Qe4
{[%clk 00:05:57]} {[%emt 00:00:40]} 23. Be3 {[%clk 00:15:17]} {[%emt 00:00:08]}
Rc8 {[%clk 00:04:23]} {[%emt 00:02:04]} 24. Rac1 {[%clk 00:13:42]} {[%emt
00:02:05]} 1/2-1/2

[Event "Polofinale MCR juniorek 2023"]
[Site "Czech Republic"]
[Date "2023.11.17"]
[Round "8.2"]
[White "Markina, Sofiia"]
[Black "Sulcova, Tereza Radmila"]
[Result "1-0"]
[TimeControl "90 min per 40 moves + 15 min + 30 sec / move from move 1"]
[WhiteFideId "23744014"]
[BlackFideId "395196"]
[WhiteElo "1563"]
[BlackElo "1671"]

1. e4 {[%clk 01:30:58]} {[%emt 00:00:01]} e6 {[%clk 01:30:55]} {[%emt
00:00:06]} 2. d4 {[%clk 01:31:22]} {[%emt 00:00:05]} d5 {[%clk 01:31:19]}
{[%emt 00:00:06]} 3. Nd2 {[%clk 01:31:39]} {[%emt 00:00:14]} Nc6 {[%clk
01:31:39]} {[%emt 00:00:10]} 4. Ngf3 {[%clk 01:31:56]} {[%emt 00:00:13]} Nf6
{[%clk 01:31:54]} {[%emt 00:00:15]} 5. e5 {[%clk 01:31:59]} {[%emt 00:00:27]}
Nd7 {[%clk 01:32:15]} {[%emt 00:00:09]} 6. c3 {[%clk 01:32:17]} {[%emt
00:00:13]} f6 {[%clk 01:31:42]} {[%emt 00:01:03]} 7. Bb5 {[%clk 01:32:29]}
{[%emt 00:00:19]} fxe5 {[%clk 01:31:54]} {[%emt 00:00:17]} 8. dxe5 {[%clk
01:32:45]} {[%emt 00:00:14]} Be7 {[%clk 01:31:58]} {[%emt 00:00:25]} 9. O-O
{[%clk 01:32:37]} {[%emt 00:00:39]} O-O {[%clk 01:32:06]} {[%emt 00:00:23]} 10.
Re1 {[%clk 01:32:44]} {[%emt 00:00:22]} a6 {[%clk 01:23:52]} {[%emt 00:08:44]}
11. Bd3 {[%clk 01:32:46]} {[%emt 00:00:28]} b6 {[%clk 01:23:48]} {[%emt
00:00:34]} 12. Nf1 {[%clk 01:28:46]} {[%emt 00:04:30]} Rf7 {[%clk 01:18:48]}
{[%emt 00:05:30]} 13. Ng3 {[%clk 01:24:58]} {[%emt 00:04:18]} Nf8 {[%clk
01:14:49]} {[%emt 00:04:29]} 14. Qc2 {[%clk 01:21:19]} {[%emt 00:04:09]} Bb7
{[%clk 01:08:17]} {[%emt 00:07:02]} 15. Be3 {[%clk 01:18:18]} {[%emt 00:03:23]}
Na5 {[%clk 01:01:55]} {[%emt 00:07:00]} 16. b3 {[%clk 01:12:47]} {[%emt
00:06:01]} c5 {[%clk 01:00:05]} {[%emt 00:02:19]} 17. Rad1 {[%clk 01:12:27]}
{[%emt 00:00:50]} b5 {[%clk 00:54:31]} {[%emt 00:06:04]} 18. c4 {[%clk
00:59:07]} {[%emt 00:13:51]} bxc4 {[%clk 00:49:46]} {[%emt 00:05:15]} 19. bxc4
{[%clk 00:58:51]} {[%emt 00:00:46]} d4 {[%clk 00:49:39]} {[%emt 00:00:37]} 20.
Bd2 {[%clk 00:57:55]} {[%emt 00:01:24]} Rb8 {[%clk 00:45:23]} {[%emt 00:04:48]}
21. Ne4 {[%clk 00:54:56]} {[%emt 00:03:28]} h6 {[%clk 00:44:11]} {[%emt
00:01:42]} 22. Rb1 {[%clk 00:50:48]} {[%emt 00:04:38]} Nc6 {[%clk 00:42:12]}
{[%emt 00:02:31]} 23. a3 {[%clk 00:49:08]} {[%emt 00:02:11]} Qc7 {[%clk
00:38:29]} {[%emt 00:04:12]} 24. Qc1 {[%clk 00:41:52]} {[%emt 00:07:46]} Nxe5
{[%clk 00:35:31]} {[%emt 00:03:28]} 25. Nxe5 {[%clk 00:41:21]} {[%emt
00:01:00]} Qxe5 {[%clk 00:35:53]} {[%emt 00:00:08]} 26. Ng5 {[%clk 00:40:46]}
{[%emt 00:01:05]} Qf6 {[%clk 00:34:19]} {[%emt 00:02:03]} 27. Nxf7 {[%clk
00:41:06]} {[%emt 00:00:11]} Qxf7 {[%clk 00:34:47]} {[%emt 00:00:02]} 28. Bf4
{[%clk 00:41:22]} {[%emt 00:00:13]} Bg5 {[%clk 00:33:05]} {[%emt 00:02:13]} 29.
Bxg5 {[%clk 00:40:37]} {[%emt 00:01:15]} hxg5 {[%clk 00:33:13]} {[%emt
00:00:22]} 30. Qxg5 {[%clk 00:40:56]} {[%emt 00:00:11]} Rc8 {[%clk 00:32:47]}
{[%emt 00:00:56]} 31. f3 {[%clk 00:38:00]} {[%emt 00:03:26]} Qc7 {[%clk
00:29:11]} {[%emt 00:04:06]} 32. Re5 {[%clk 00:24:48]} {[%emt 00:13:40]} Ba8
{[%clk 00:28:30]} {[%emt 00:01:13]} 33. Be4 {[%clk 00:23:10]} {[%emt 00:02:08]}
Bxe4 {[%clk 00:28:25]} {[%emt 00:00:35]} 34. Rxe4 {[%clk 00:23:32]} {[%emt
00:00:09]} Qd7 {[%clk 00:27:41]} {[%emt 00:01:14]} 35. Qg4 {[%clk 00:21:36]}
{[%emt 00:02:22]} Rc6 {[%clk 00:26:57]} {[%emt 00:01:17]} 36. Rb8 {[%clk
00:19:54]} {[%emt 00:02:12]} d3 {[%clk 00:24:05]} {[%emt 00:03:22]} 37. Qf4
{[%clk 00:17:57]} {[%emt 00:02:27]} Qe7 {[%clk 00:23:38]} {[%emt 00:00:57]} 38.
Re1 {[%clk 00:18:02]} {[%emt 00:00:25]} Rd6 {[%clk 00:23:46]} {[%emt 00:00:23]}
39. Rd1 {[%clk 00:16:36]} {[%emt 00:01:55]} Rd4 {[%clk 00:22:54]} {[%emt
00:01:23]} 40. Qc1 {[%clk 00:16:48]} {[%emt 00:00:18]} Qd6 {[%clk 00:22:39]}
{[%emt 00:00:45]} 41. Rb2 {[%clk 00:16:54]} {[%emt 00:00:24]} Ng6 {[%clk
00:21:51]} {[%emt 00:01:18]} 42. Rb3 {[%clk 00:15:47]} {[%emt 00:01:38]} Nf4
{[%clk 00:21:38]} {[%emt 00:00:43]} 43. Kh1 {[%clk 00:13:38]} {[%emt 00:02:39]}
Ne2 {[%clk 00:21:12]} {[%emt 00:00:56]} 44. Qg5 {[%clk 00:12:24]} {[%emt
00:01:36]} Nf4 {[%clk 00:19:01]} {[%emt 00:02:49]} 45. Rb7 {[%clk 00:09:32]}
{[%emt 00:03:22]} Qf8 {[%clk 00:19:18]} {[%emt 00:00:13]} 46. Qe5 {[%clk
00:09:21]} {[%emt 00:00:38]} d2 {[%clk 00:18:39]} {[%emt 00:01:11]} 47. Rb8
{[%clk 00:08:55]} {[%emt 00:00:57]} 1-0

[Event "Polofinale MCR juniorek 2023"]
[Site "Czech Republic"]
[Date "2023.11.17"]
[Round "8.3"]
[White "Brezikova, Beata"]
[Black "Stastna, Martina"]
[Result "1/2-1/2"]
[TimeControl "90 min per 40 moves + 15 min + 30 sec / move from move 1"]
[WhiteFideId "23727250"]
[BlackFideId "385123"]
[WhiteElo "1622"]
[BlackElo "1940"]

1. e4 {[%clk 01:30:58]} e5 {[%clk 01:30:52]} {[%emt 00:00:08]} 2. Nf3 {[%clk
01:31:25]} {[%emt 00:00:03]} Nc6 {[%clk 01:31:12]} {[%emt 00:00:10]} 3. Bc4
{[%clk 01:31:49]} {[%emt 00:00:06]} Bc5 {[%clk 01:31:30]} {[%emt 00:00:12]} 4.
O-O {[%clk 01:31:53]} {[%emt 00:00:26]} Nf6 {[%clk 01:31:31]} {[%emt 00:00:29]}
5. d4 {[%clk 01:31:48]} {[%emt 00:00:35]} Bxd4 {[%clk 01:31:32]} {[%emt
00:00:29]} 6. Nxd4 {[%clk 01:32:00]} {[%emt 00:00:18]} Nxd4 {[%clk 01:31:26]}
{[%emt 00:00:36]} 7. f4 {[%clk 01:31:57]} {[%emt 00:00:34]} d6 {[%clk
01:30:46]} {[%emt 00:01:09]} 8. fxe5 {[%clk 01:31:28]} {[%emt 00:00:59]} dxe5
{[%clk 01:31:01]} {[%emt 00:00:15]} 9. Bg5 {[%clk 01:31:33]} {[%emt 00:00:25]}
Be6 {[%clk 01:29:16]} {[%emt 00:02:15]} 10. Na3 {[%clk 01:30:21]} {[%emt
00:01:43]} Qe7 {[%clk 01:28:53]} {[%emt 00:00:52]} 11. c3 {[%clk 01:28:53]}
{[%emt 00:01:58]} Nc6 {[%clk 01:27:40]} {[%emt 00:01:43]} 12. Bxf6 {[%clk
01:21:04]} {[%emt 00:08:20]} gxf6 {[%clk 01:24:56]} {[%emt 00:03:14]} 13. Qf3
{[%clk 01:18:03]} {[%emt 00:03:30]} Bxc4 {[%clk 01:21:58]} {[%emt 00:03:28]} 14.
Nxc4 {[%clk 01:18:02]} {[%emt 00:00:31]} O-O-O {[%clk 01:13:37]} {[%emt
00:08:50]} 15. Kh1 {[%clk 01:13:02]} {[%emt 00:05:31]} Qe6 {[%clk 01:10:24]}
{[%emt 00:03:44]} 16. Qf5 {[%clk 01:05:41]} {[%emt 00:07:50]} Rhf8 {[%clk
01:06:45]} {[%emt 00:04:09]} 17. Rf2 {[%clk 01:02:02]} {[%emt 00:04:10]} Ne7
{[%clk 01:04:07]} {[%emt 00:03:07]} 18. Qxe6+ {[%clk 01:00:38]} {[%emt
00:01:54]} fxe6 {[%clk 01:04:27]} {[%emt 00:00:10]} 19. Raf1 {[%clk 01:00:04]}
{[%emt 00:01:04]} Ng6 {[%clk 01:01:52]} {[%emt 00:03:05]} 20. g3 {[%clk
00:55:50]} {[%emt 00:04:44]} Kd7 {[%clk 00:52:37]} {[%emt 00:09:43]} 21. Rxf6
{[%clk 00:52:13]} {[%emt 00:04:08]} Rxf6 {[%clk 00:52:54]} {[%emt 00:00:14]} 22.
Rxf6 {[%clk 00:52:36]} {[%emt 00:00:07]} Ke7 {[%clk 00:53:13]} {[%emt
00:00:11]} 23. Rf2 {[%clk 00:51:42]} {[%emt 00:01:24]} b5 {[%clk 00:52:03]}
{[%emt 00:01:40]} 24. Ne3 {[%clk 00:47:07]} {[%emt 00:05:05]} c5 {[%clk
00:47:09]} {[%emt 00:05:25]} 25. a3 {[%clk 00:43:31]} {[%emt 00:04:07]} a5
{[%clk 00:45:08]} {[%emt 00:02:30]} 26. Kg2 {[%clk 00:42:30]} {[%emt 00:01:31]}
Rd3 {[%clk 00:38:07]} {[%emt 00:07:30]} 27. Re2 {[%clk 00:39:30]} {[%emt
00:03:30]} Nf8 {[%clk 00:35:08]} {[%emt 00:03:29]} 28. Ng4 {[%clk 00:28:23]}
{[%emt 00:11:36]} Nd7 {[%clk 00:33:08]} {[%emt 00:02:30]} 29. Nf2 {[%clk
00:26:53]} {[%emt 00:02:00]} Rd6 {[%clk 00:32:02]} {[%emt 00:01:36]} 30. Kf1
{[%clk 00:24:58]} {[%emt 00:02:26]} Nf6 {[%clk 00:27:17]} {[%emt 00:05:15]} 31.
Ke1 {[%clk 00:23:26]} {[%emt 00:02:01]} c4 {[%clk 00:25:14]} {[%emt 00:02:33]}
32. Rd2 {[%clk 00:20:22]} {[%emt 00:03:34]} Rb6 {[%clk 00:24:07]} {[%emt
00:01:37]} 33. Ke2 {[%clk 00:17:16]} {[%emt 00:03:36]} Rb8 {[%clk 00:21:37]}
{[%emt 00:03:00]} 34. Kf3 {[%clk 00:15:24]} {[%emt 00:02:22]} Rg8 {[%clk
00:18:42]} {[%emt 00:03:24]} 35. Nd1 {[%clk 00:09:09]} {[%emt 00:06:45]} Nd7
{[%clk 00:15:53]} {[%emt 00:03:20]} 36. Nf2 {[%clk 00:05:56]} {[%emt 00:03:43]}
1/2-1/2

[Event "Polofinale MCR juniorek 2023"]
[Site "Czech Republic"]
[Date "2023.11.17"]
[Round "8.4"]
[White "Nagyova, Daniela"]
[Black "Bartova, Hana"]
[Result "1/2-1/2"]
[TimeControl "90 min per 40 moves + 15 min + 30 sec / move from move 1"]
[WhiteFideId "390070"]
[BlackFideId "23732695"]
[WhiteElo "1872"]
[BlackElo "1270"]

1. e4 {[%clk 01:30:53]} {[%emt 00:00:06]} e5 {[%clk 01:30:53]} {[%emt
00:00:07]} 2. Nf3 {[%clk 01:31:11]} {[%emt 00:00:11]} Nc6 {[%clk 01:30:33]}
{[%emt 00:00:51]} 3. Bc4 {[%clk 01:31:09]} {[%emt 00:00:32]} Nf6 {[%clk
01:27:07]} {[%emt 00:03:55]} 4. d4 {[%clk 01:30:41]} {[%emt 00:00:58]} exd4
{[%clk 01:26:05]} {[%emt 00:01:32]} 5. e5 {[%clk 01:31:02]} {[%emt 00:00:10]}
d5 {[%clk 01:25:13]} {[%emt 00:01:21]} 6. Bb5 {[%clk 01:31:01]} {[%emt
00:00:32]} Ne4 {[%clk 01:24:06]} {[%emt 00:01:36]} 7. Nxd4 {[%clk 01:30:38]}
{[%emt 00:00:54]} Bd7 {[%clk 01:22:48]} {[%emt 00:01:47]} 8. Bxc6 {[%clk
01:29:46]} {[%emt 00:01:22]} bxc6 {[%clk 01:22:50]} {[%emt 00:00:29]} 9. O-O
{[%clk 01:26:32]} {[%emt 00:03:44]} Bc5 {[%clk 01:20:15]} {[%emt 00:03:05]} 10.
f3 {[%clk 01:26:18]} {[%emt 00:00:44]} Ng5 {[%clk 01:18:31]} {[%emt 00:02:11]}
11. f4 {[%clk 01:26:28]} {[%emt 00:00:22]} Ne4 {[%clk 01:16:58]} {[%emt
00:02:03]} 12. Be3 {[%clk 01:26:16]} {[%emt 00:00:41]} Qb8 {[%clk 01:12:09]}
{[%emt 00:05:15]} 13. Nd2 {[%clk 01:14:28]} {[%emt 00:12:23]} Qxb2 {[%clk
01:02:01]} {[%emt 00:10:38]} 14. Rb1 {[%clk 01:04:57]} {[%emt 00:10:01]} Bxd4
{[%clk 00:54:50]} {[%emt 00:07:42]} 15. Rxb2 {[%clk 01:02:39]} {[%emt
00:02:47]} Bxe3+ {[%clk 00:55:03]} {[%emt 00:00:17]} 16. Kh1 {[%clk 01:01:00]}
{[%emt 00:02:08]} Bxd2 {[%clk 00:54:05]} {[%emt 00:01:29]} 17. c4 {[%clk
00:54:01]} {[%emt 00:07:30]} Bc3 {[%clk 00:49:44]} {[%emt 00:04:48]} 18. Re2
{[%clk 00:49:41]} {[%emt 00:04:53]} Bg4 {[%clk 00:40:05]} {[%emt 00:10:09]} 19.
cxd5 {[%clk 00:47:59]} {[%emt 00:02:13]} Rd8 {[%clk 00:29:51]} {[%emt
00:10:44]} 20. d6 {[%clk 00:43:44]} {[%emt 00:04:45]} O-O {[%clk 00:20:52]}
{[%emt 00:09:29]} 21. Qd3 {[%clk 00:38:48]} {[%emt 00:05:25]} Bxe2 {[%clk
00:19:11]} {[%emt 00:02:11]} 22. Qxe2 {[%clk 00:39:12]} {[%emt 00:00:06]} Nxd6
{[%clk 00:07:53]} {[%emt 00:11:48]} 1/2-1/2